lending/lending_fUSD_20250303
["ID","MTS","AMOUNT","RATE_DAILY","PERIOD"]
[355255914,1741044637982,-977.04,0.00012894,2]
[355255916,1741044637992,-500.0,0.00012894,2]
[355255918,1741044638003,-500.0,0.00012894,2]
[355255920,1741044638013,-1756.58,0.00012894,2]
[355255922,1741044638023,-500.0,0.00012894,2]
[355255924,1741044638032,-500.0,0.00012894,2]
[355255926,1741044638042,-500.0,0.00012894,2]
[355255928,1741044638051,-303.90708276,0.00012894,2]
[355255930,1741044638061,-1161.22,0.00012894,2]
[355255932,1741044638070,-1460.99,0.00012894,2]
[355255934,1741044638080,-537.10631629,0.00012894,2]
[355255936,1741044638089,-1317.73,0.00012894,2]
[355255938,1741044638099,-500.0,0.00012894,2]
[355255940,1741044638108,-1134.41,0.00012894,2]
[355255942,1741044638117,-745.82,0.00012894,2]
[355255944,1741044638127,-834.03,0.00012894,2]
[355255946,1741044638136,-500.0,0.00012894,2]
[355255948,1741044638145,-524.80523579,0.00012894,2]
[355255949,1741044638155,-881.02,0.00012894,2]
[355255951,1741044638165,-1113.42,0.00012894,2]
[355255953,1741044638174,-500.0,0.00012894,2]
[355255955,1741044638183,-664.36,0.00012894,2]
[355255957,1741044638193,-829.54,0.00012894,2]
[355255959,1741044638202,-500.0,0.00012894,2]
[355255961,1741044638212,-500.0,0.00012894,2]
[355255963,1741044638222,-1093.88,0.00012894,2]
[355255966,1741044638231,-1084.74,0.00012894,2]
[355255967,1741044638241,-500.0,0.00012894,2]
[355255970,1741044638250,-500.0,0.00012894,2]
[355255971,1741044638260,-1141.03,0.00012894,2]
[355255975,1741044638269,-801.66,0.00012894,2]
[355255978,1741044638279,-500.0,0.00012894,2]
[355255979,1741044638288,-500.0,0.00012894,2]
[355255981,1741044638297,-975.24,0.00012894,2]
[355255983,1741044638307,-500.0,0.00012894,2]
[355255985,1741044638316,-1129.6,0.00012894,2]
[355255988,1741044638325,-2480.35,0.00012894,2]
[355255990,1741044638335,-500.0,0.00012894,2]
[355255991,1741044638343,-429.99674231,0.00012894,2]
[355255994,1741044638354,-744.47,0.00012894,2]
[355255996,1741044638363,-1830.72,0.00012894,2]
[355255997,1741044638372,-1068.85,0.00012894,2]
[355255999,1741044638381,-706.25,0.00012894,2]
[355256001,1741044638390,-500.0,0.00012894,2]
[355256003,1741044638399,-163.89828706,0.00012894,2]
[355256005,1741044638408,-2712.73,0.00012894,2]
[355256007,1741044638416,-1005.86,0.00012894,2]
[355256009,1741044638425,-500.0,0.00012894,2]
[355256011,1741044638434,-535.78680824,0.00012894,2]
[355256013,1741044638443,-1428.72,0.00012894,2]
[355256015,1741044638452,-697.05,0.00012894,2]
[355256017,1741044638461,-500.0,0.00012894,2]
[355256019,1741044638470,-500.0,0.00012894,2]
[355256021,1741044638479,-537.69496342,0.00012894,2]
[355256023,1741044638488,-711.8,0.00012894,2]
[355256025,1741044638497,-500.0,0.00012894,2]
[355256027,1741044638506,-500.0,0.00012894,2]
[355256029,1741044638516,-34406.81,0.00012894,2]
[355256031,1741044638525,-500.0,0.00012894,2]
[355256033,1741044638534,-500.0,0.00012894,2]
[355256035,1741044638543,-500.0,0.00012894,2]
[355256037,1741044638552,-500.0,0.00012894,2]
[355256039,1741044638561,-500.0,0.00012894,2]
[355256041,1741044638570,-2276.83,0.00012894,2]
[355256042,1741044638579,-1563.8,0.00012894,2]
[355256045,1741044638588,-1524.41,0.00012894,2]
[355256046,1741044638597,-679.49,0.00012894,2]
[355256049,1741044638608,-500.0,0.00012894,2]
[355256050,1741044638617,-500.0,0.00012894,2]
[355256052,1741044638626,-500.0,0.00012894,2]
[355256054,1741044638635,-1550.9,0.00012894,2]
[355256056,1741044638643,-767.82,0.00012894,2]
[355256058,1741044638653,-804.18,0.00012894,2]
[355256060,1741044638662,-500.0,0.00012894,2]
[355256062,1741044638671,-711.3,0.00012894,2]
[355256064,1741044638680,-1547.53,0.00012894,2]
[355256066,1741044638689,-2399.37,0.00012894,2]
[355256068,1741044638698,-765.78,0.00012894,2]
[355256070,1741044638708,-807.07,0.00012894,2]
[355256072,1741044638717,-500.0,0.00012894,2]
[355256074,1741044638727,-500.0,0.00012894,2]
[355256076,1741044638736,-500.0,0.00012894,2]
[355256078,1741044638745,-500.0,0.00012894,2]
[355256080,1741044638755,-4725.1,0.00012894,2]
[355256082,1741044638764,-1261.53,0.00012894,2]
[355256083,1741044638773,-500.0,0.00012894,2]
[355256084,1741044638782,-500.0,0.00012894,2]
[355256085,1741044638792,-34853.09,0.00012894,2]
[355256086,1741044638801,-500.0,0.00012894,2]
[355256087,1741044638810,-1222.38,0.00012894,2]
[355256088,1741044638819,-836.92,0.00012894,2]
[355256089,1741044638828,-711.79,0.00012894,2]
[355256090,1741044638838,-964.95,0.00012894,2]
[355256091,1741044638847,-500.0,0.00012894,2]
[355256092,1741044638857,-4523.4,0.00012894,2]
[355256093,1741044638866,-500.0,0.00012894,2]
[355256095,1741044638875,-1692.63,0.00012894,2]
[355256097,1741044638885,-500.0,0.00012894,2]
[355256099,1741044638895,-924.68,0.00012894,2]
[355256101,1741044638904,-500.0,0.00012894,2]
[355256103,1741044638914,-2016.39,0.00012894,2]
[355256105,1741044638925,-500.0,0.00012894,2]
[355256107,1741044638937,-1584.46,0.00012894,2]
[355256110,1741044638946,-500.0,0.00012894,2]
[355256112,1741044638955,-1970.77,0.00012894,2]
[355256114,1741044638968,-1167.69,0.00012894,2]
[355256115,1741044638980,-6311.98,0.00012894,2]
[355256116,1741044638993,-953.98,0.00012894,2]
[355256117,1741044639005,-500.0,0.00012894,2]
[355256118,1741044639014,-1200.79,0.00012894,2]
[355256119,1741044639023,-2822.66,0.00012894,2]
[355256120,1741044639033,-2258.4,0.00012894,2]
[355256121,1741044639042,-996.15,0.00012894,2]
[355256122,1741044639051,-500.0,0.00012894,2]
[355256123,1741044639061,-3278.55,0.00012894,2]
[355256124,1741044639070,-915.54,0.00012894,2]
[355256125,1741044639079,-500.0,0.00012894,2]
[355256126,1741044639089,-500.0,0.00012894,2]
[355256127,1741044639098,-504.66752174,0.00012895,2]
[355256128,1741044639107,-500.0,0.00012895,2]
[355256129,1741044639117,-201.53621035,0.00012895,2]
[355256130,1741044639126,-500.0,0.00012895,2]
[355256131,1741044639135,-500.0,0.00012895,2]
[355256132,1741044639145,-500.0,0.00012895,2]
[355256133,1741044639154,-1365.13,0.00012895,2]
[355256134,1741044639163,-500.0,0.00012895,2]
[355256135,1741044639173,-500.0,0.00012895,7]
[355256136,1741044639183,-842.26,0.00012895,2]
[355256137,1741044639193,-500.0,0.00012895,2]
[355256138,1741044639203,-1076.85,0.00012895,2]
[355256139,1741044639212,-500.0,0.00012895,2]
[355256140,1741044639222,-776.79,0.00012895,2]
[355256141,1741044639231,-500.0,0.00012895,2]
[355256142,1741044639241,-750.54,0.00012895,2]
[355256143,1741044639250,-500.0,0.00012895,2]
[355256144,1741044639260,-762.88,0.00012895,2]
[355256145,1741044639269,-500.1919967,0.00012895,2]
[355256146,1741044639278,-957.18,0.00012895,2]
[355256147,1741044639287,-500.0,0.00012895,2]
[355256148,1741044639296,-500.0,0.00012895,2]
[355256149,1741044639305,-918.12,0.00012895,2]
[355256150,1741044639315,-724.22,0.00012895,2]
[355256151,1741044639324,-1096.96,0.00012895,2]
[355256152,1741044639334,-500.0,0.00012895,2]
[355256153,1741044639343,-500.0,0.00012895,2]
[355256154,1741044639352,-523.52511215,0.00012895,2]
[355256155,1741044639361,-500.0,0.00012895,2]
[355256156,1741044639371,-500.0,0.00012895,2]
[355256157,1741044639380,-500.0,0.00012895,2]
[355256158,1741044639390,-500.0,0.00012895,2]
[355256159,1741044639399,-601.77,0.00012895,2]
[355256160,1741044639408,-1098.66,0.00012895,2]
[355256161,1741044639417,-500.0,0.00012895,2]
[355256162,1741044639427,-500.0,0.00012895,2]
[355256163,1741044639436,-500.0,0.00012895,2]
[355256164,1741044639446,-500.0,0.00012895,2]
[355256165,1741044639455,-500.0,0.00012895,2]
[355256166,1741044639465,-235.33318959,0.00012895,2]
[355256270,1741044640873,-500.0,0.00012893,2]
[355256272,1741044640882,-1498.29,0.00012894,2]
[355256274,1741044640891,-12.02738068,0.00012894,2]
[355256277,1741044640911,-487.97261932,0.00012894,2]
[355256279,1741044640921,-516.92681041,0.00012895,2]
[355256281,1741044640936,-500.0,0.00012895,2]
[355256283,1741044640945,-500.0,0.00012895,2]
[355256285,1741044640954,-500.0,0.00012895,2]
[355256287,1741044640963,-677.63,0.00012895,2]
[355256289,1741044640974,-153.98317387,0.00012895,2]
[355256291,1741044640983,-500.0,0.00012895,2]
[355256293,1741044640992,-500.0,0.00012895,2]
[355256295,1741044641002,-499.17696087,0.00012895,2]
[355256326,1741044641294,-0.82303913,0.00012895,2]
[355256328,1741044641303,-724.35,0.00012895,2]
[355256330,1741044641313,-1150.79,0.00012895,2]
[355256332,1741044641323,-1189.88,0.00012895,2]
[355256334,1741044641332,-902.99,0.00012895,2]
[355256336,1741044641342,-488.73160937,0.00012895,2]
[355256338,1741044641351,-500.0,0.00012895,2]
[355256340,1741044641361,-500.0,0.00012895,2]
[355256342,1741044641371,-1316.98,0.00012895,2]
[355256344,1741044641380,-500.0,0.00012895,2]
[355256346,1741044641390,-500.0,0.00012895,2]
[355256348,1741044641399,-500.0,0.00012895,2]
[355256350,1741044641408,-773.27,0.00012895,2]
[355256352,1741044641418,-1039.27,0.00012895,2]
[355256354,1741044641427,-500.0,0.00012895,2]
[355256356,1741044641436,-500.0,0.00012895,2]
[355256358,1741044641446,-1073.55,0.00012895,2]
[355256360,1741044641455,-756.93,0.00012895,2]
[355256362,1741044641465,-261.43948139,0.00012895,2]
[355256364,1741044641474,-591.42,0.00012895,2]
[355256366,1741044641483,-541.0431938,0.00012895,2]
[355256368,1741044641493,-1492.9,0.00012895,2]
[355256370,1741044641502,-5000.0,0.00012895,2]
[355256372,1741044641511,-901.79,0.00012895,2]
[355256374,1741044641520,-1299.15,0.00012895,2]
[355256376,1741044641530,-150.0,0.00012895,2]
[355256378,1741044641539,-262.82,0.00012895,2]
[355256379,1741044641548,-500.0,0.00012895,2]
[355256381,1741044641558,-500.0,0.00012895,2]
[355256383,1741044641568,-704.19,0.00012895,2]
[355256385,1741044641577,-500.0,0.00012895,2]
[355256387,1741044641586,-1762.5,0.00012895,2]
[355256389,1741044641595,-2073.2,0.00012895,2]
[355256391,1741044641605,-1073.65,0.00012895,2]
[355256393,1741044641614,-1143.98,0.00012895,2]
[355256395,1741044641624,-500.0,0.00012895,2]
[355256397,1741044641633,-500.0,0.00012895,2]
[355256399,1741044641643,-1469.97,0.00012895,2]
[355256401,1741044641654,-500.0,0.00012895,2]
[355256403,1741044641663,-500.0,0.00012895,2]
[355256405,1741044641672,-500.0,0.00012895,2]
[355256407,1741044641681,-1824.09,0.00012895,2]
[355256409,1741044641691,-500.0,0.00012895,2]
[355256411,1741044641700,-500.0,0.00012895,2]
[355256413,1741044641710,-500.0,0.00012895,2]
[355256415,1741044641719,-500.0,0.00012895,2]
[355256417,1741044641729,-1951.6,0.00012895,2]
[355256419,1741044641739,-619.07,0.00012895,2]
[355256422,1741044641749,-1989.92,0.00012895,2]
[355256423,1741044641760,-500.0,0.00012895,2]
[355256425,1741044641770,-1942.4,0.00012895,2]
[355256427,1741044641779,-1131.22,0.00012895,2]
[355256429,1741044641788,-1439.97,0.00012895,2]
[355256431,1741044641797,-256.04,0.00012895,2]
[355256433,1741044641806,-376.55052799,0.00012895,2]
[355256435,1741044641815,-1928.64,0.00012895,2]
[355256437,1741044641824,-500.0,0.00012895,2]
[355256439,1741044641833,-500.0,0.00012895,2]
[355256441,1741044641842,-634.8,0.00012895,2]
[355256443,1741044641851,-1090.51,0.00012895,2]
[355256445,1741044641861,-708.85,0.00012895,2]
[355256447,1741044641869,-887.6,0.00012895,2]
[355256449,1741044641879,-1657.79,0.00012895,2]
[355256451,1741044641892,-1587.88,0.00012895,2]
[355256453,1741044641901,-2222.58,0.00012895,2]
[355256455,1741044641912,-931.91,0.00012895,2]
[355256457,1741044641924,-1069.03,0.00012895,2]
[355256460,1741044641935,-1353.35,0.00012895,2]
[355256462,1741044641945,-500.0,0.00012895,2]
[355256464,1741044641956,-1838.22,0.00012895,2]
[355256465,1741044641966,-2050.81,0.00012895,2]
[355256467,1741044641976,-580.89,0.00012895,2]
[355256470,1741044641986,-1547.8,0.00012895,2]
[355256472,1741044642000,-500.0,0.00012895,2]
[355256474,1741044642011,-1152.66,0.00012895,2]
[355256476,1741044642024,-258.43613579,0.00012896,2]
[355256478,1741044642034,-500.0,0.00012896,2]
[355256480,1741044642043,-500.0,0.00012896,2]
[355256482,1741044642053,-500.0,0.00012896,2]
[355256484,1741044642063,-994.65,0.00012896,2]
[355256486,1741044642072,-910.37,0.00012896,2]
[355256488,1741044642082,-500.0,0.00012896,2]
[355256491,1741044642091,-1348.73,0.00012896,2]
[355256492,1741044642101,-788.58,0.00012896,2]
[355256495,1741044642111,-500.0,0.00012896,2]
[355256497,1741044642121,-804.53,0.00012896,2]
[355256499,1741044642130,-812.7,0.00012896,2]
[355256501,1741044642140,-500.0,0.00012896,2]
[355256503,1741044642150,-500.0,0.00012896,2]
[355256505,1741044642160,-500.0,0.00012896,2]
[355256507,1741044642169,-500.0,0.00012896,2]
[355256509,1741044642179,-500.0,0.00012896,2]
[355256511,1741044642189,-500.0,0.00012896,2]
[355256513,1741044642200,-500.0,0.00012896,2]
[355256515,1741044642209,-500.0,0.00012896,2]
[355256517,1741044642219,-500.0,0.00012896,2]
[355256519,1741044642230,-947.15,0.00012896,2]
[355256521,1741044642239,-917.21,0.00012896,2]
[355256523,1741044642248,-500.0,0.00012896,2]
[355256525,1741044642258,-500.0,0.00012896,2]
[355256527,1741044642268,-500.0,0.00012896,2]
[355256529,1741044642279,-500.0,0.00012896,2]
[355256531,1741044642289,-500.0,0.00012896,2]
[355256533,1741044642298,-500.0,0.00012896,2]
[355256535,1741044642308,-500.0,0.00012896,2]
[355256537,1741044642318,-500.0,0.00012896,2]
[355256539,1741044642328,-500.0,0.00012896,2]
[355256541,1741044642338,-500.0,0.00012896,2]
[355256543,1741044642347,-500.0,0.00012896,2]
[355256552,1741044642560,-665.93,0.00012896,2]
[355256553,1741044642570,-500.0,0.00012896,2]
[355256554,1741044642580,-157.60893131,0.000129,2]
[355256556,1741044642590,-7652.006386,0.000129,2]
[355256558,1741044642599,-949.25139625,0.000129,2]
[355256560,1741044642609,-388.26066771,0.000129,2]
[355256562,1741044642619,-1000.0,0.000129,2]
[355256564,1741044642628,-182.17667251,0.00012906,2]
[355256566,1741044642638,-150.0,0.00012912,2]
[355256568,1741044642647,-150.0,0.00012916,2]
[355256570,1741044642657,-150.0,0.00012923,2]
[355256572,1741044642666,-150.0,0.00012925,2]
[355256574,1741044642675,-1000.0,0.00012926,2]
[355256576,1741044642684,-150.0,0.00012927,2]
[355256578,1741044642693,-150.0,0.00012929,2]
[355256580,1741044642704,-150.0,0.00012933,2]
[355256582,1741044642714,-150.0,0.00012935,2]
[355256584,1741044642724,-150.0,0.00012935,2]
[355256586,1741044642733,-500.0,0.00012935,2]
[355256588,1741044642743,-500.0,0.00012935,2]
[355256590,1741044642752,-500.0,0.00012935,2]
[355256592,1741044642761,-500.0,0.00012935,2]
[355256594,1741044642770,-500.0,0.00012935,2]
[355256596,1741044642779,-467.2655,0.00012935,2]
[355256598,1741044642796,-150.0,0.00012937,2]
[355256600,1741044642806,-150.0,0.00012939,2]
[355256602,1741044642816,-150.0,0.0001294,2]
[355256604,1741044642826,-150.0,0.00012941,2]
[355256606,1741044642836,-150.0,0.00012941,2]
[355256608,1741044642846,-150.0,0.00012944,2]
[355256610,1741044642856,-150.0,0.00012944,2]
[355256612,1741044642866,-150.0,0.00012947,2]
[355256615,1741044642875,-166.73892651,0.00012947,2]
[355256617,1741044642885,-189.62923737,0.00012947,2]
[355256619,1741044642895,-500.0,0.00012947,2]
[355256621,1741044642905,-500.0,0.00012947,2]
[355256623,1741044642915,-500.0,0.00012947,2]
[355256625,1741044642925,-391.1621792,0.00012947,2]
[355256626,1741044642937,-500.0,0.00012947,2]
[355256628,1741044642947,-500.0,0.00012947,2]
[355256631,1741044642957,-500.0,0.00012947,2]
[355256632,1741044642966,-321.12,0.00012948,2]
[355256634,1741044642978,-150.0,0.00012954,2]
[355256637,1741044642988,-150.0,0.00012954,2]
[355256639,1741044642999,-150.0,0.00012958,2]
[355256641,1741044643009,-150.0,0.00012963,2]
[355256643,1741044643020,-150.0,0.00012967,2]
[355256645,1741044643029,-500.0,0.00012973,2]
[355256647,1741044643040,-152.07269364,0.00012973,2]
[355256649,1741044643050,-150.0,0.00012976,2]
[355256651,1741044643059,-150.0,0.00012983,2]
[355256653,1741044643068,-150.0,0.00012989,2]
[355256654,1741044643078,-150.0,0.00012992,2]
[355256657,1741044643088,-150.0,0.00012993,2]
[355256659,1741044643098,-150.0,0.00012996,2]
[355256660,1741044643107,-2693.76,0.00012999,2]
[355256662,1741044643117,-1338.76,0.00012999,2]
[355256665,1741044643127,-3895.89,0.00012999,2]
[355256666,1741044643137,-20333.8,0.00012999,2]
[355256668,1741044643147,-4368.69,0.00012999,2]
[355256672,1741044643156,-170849.56402375,0.00012999,2]
[355256673,1741044643166,-3852.0,0.00012999,2]
[355256676,1741044643176,-481.67510396,0.00013,2]
[355256678,1741044643186,-931221.8297103,0.00013,2]
[355256680,1741044643195,-184.0,0.00013,3]
[355256681,1741044643206,-1524447.43574008,0.00013,2]
[355256743,1741044643694,-1747.51978042,0.00013,2]
[355256871,1741044644881,-500.0,0.00012893,2]
[355256873,1741044644892,-500.0,0.00012894,2]
[355256875,1741044644902,-500.0,0.00012894,2]
[355256877,1741044644912,-179161.9534534,0.00013,2]
[355256880,1741044644933,-8679.7,0.00013,2]
[355256882,1741044644945,-869.30755836,0.00013,2]
[355256884,1741044644958,-1759.35999998,0.00013,2]
[355256886,1741044644971,-778.58033759,0.00013,2]
[355256889,1741044644983,-1643.95622694,0.00013,2]
[355256891,1741044644995,-1000.0,0.00013,2]
[355256893,1741044645012,-1074.03080141,0.00013,2]
[355257045,1741044646780,-331.16654565,0.00012794,2]
[355257047,1741044646789,-1086.42,0.00012893,2]
[355257049,1741044646799,-500.0,0.00012894,2]
[355257051,1741044646808,-1553.48373759,0.00013,2]
[355258631,1741044664158,-280.30691964,0.00012892,2]
[355258831,1741044719600,1000.0,0.00012108,2]
[355258832,1741044841825,375.77,0.00011824,2]
[355258833,1741045071169,150.0,0.00011825,7]
[355258834,1741045127115,470.42,9.907e-05,2]
[355258835,1741045127333,470.42,0.00012171,2]
[355258836,1741045291504,550.0,0.00011,2]
[355258837,1741045297033,168.7,9.453e-05,2]
[355258838,1741045447054,81.3,0.0001182,2]
[355258839,1741045447099,257.32,0.0001182,2]
[355258840,1741045605572,296.82,0.00011818,2]
[355258841,1741045605787,245.86,0.0001188,2]
[355258842,1741045605814,50.96,0.0001188,2]
[355258843,1741045606004,296.82,0.00011942,2]
[355258844,1741045606195,72.22,0.00012004,2]
[355258845,1741045606222,224.6,0.00012004,2]
[355258846,1741045606572,296.82,0.00012066,2]
[355258847,1741045606767,296.82,0.00012129,2]
[355258848,1741045607011,296.82,0.00012191,2]
[355258849,1741045607376,296.82,0.00012253,2]
[355258850,1741045607662,296.82,0.00012315,2]
[355258851,1741045607828,296.82,0.00012377,2]
[355258852,1741045608053,212.14914178,0.0001244,2]
[355258853,1741045608079,84.67085822,0.0001244,2]
[355258854,1741045608519,296.82,0.00012502,2]
[355258858,1741045686588,247.24,0.00011816,2]
[355258859,1741045701183,-161.17,0.00012523,2]
[355258860,1741045701242,-150.0,0.00012536,2]
[355258861,1741045701305,-296.82,0.00012564,2]
[355258862,1741045701364,-150.0,0.00012595,2]
[355258863,1741045701422,-296.82,0.00012626,2]
[355258864,1741045701479,-1000.0,0.00012654,2]
[355258865,1741045701537,-275.08212082,0.00012666,2]
[355258866,1741045701594,-296.82,0.00012688,2]
[355258867,1741045701647,-150.0,0.00012712,2]
[355258868,1741045701703,-2611.65186917,0.00012739,2]
[355258869,1741045701762,-698.03157158,0.00012739,2]
[355258870,1741045704573,1000.0,0.00012,2]
[355258871,1741045790940,1000.0,0.00011836,2]
[355258886,1741045831846,-894.71799467,0.00012739,2]
[355258887,1741045831859,-1754.44863394,0.00012739,2]
[355258888,1741045831901,-795.63781389,0.00012739,2]
[355258889,1741045831911,-550.0,0.00012744,2]
[355258890,1741045831920,-150.0,0.00012744,2]
[355258891,1741045831930,-150.0,0.00012747,2]
[355258892,1741045831939,-150.0,0.00012748,2]
[355258893,1741045831949,-182.17667251,0.00012749,2]
[355258894,1741045831958,-296.82,0.0001275,2]
[355258895,1741045831968,-8496.08213284,0.00012751,2]
[355258896,1741045831977,-150.0,0.00012751,2]
[355258897,1741045831987,-150.0,0.00012761,2]
[355258898,1741045831996,-1000.0,0.00012767,2]
[355258899,1741045832006,-150.0,0.00012776,2]
[355258900,1741045832015,-150.0,0.00012787,2]
[355258901,1741045832024,-976.171,0.00012791,2]
[355258902,1741045832034,-1713.6264,0.00012791,2]
[355258903,1741045832043,-298.8855,0.00012791,2]
[355258904,1741045832053,-2187.362,0.00012791,2]
[355258905,1741045832063,-631.0116,0.00012791,2]
[355258906,1741045832072,-150.0,0.00012791,2]
[355258907,1741045832081,-1962.31910055,0.00012791,2]
[355258908,1741045832091,-331.16654565,0.00012791,2]
[355258909,1741045832100,-153.64767834,0.00012791,2]
[355258910,1741045832109,-150.0,0.00012792,2]
[355258911,1741045832119,-2422.9021,0.00012792,2]
[355258912,1741045832128,-1092.9091,0.00012792,2]
[355258913,1741045832138,-2967.3508,0.00012792,2]
[355258914,1741045832149,-355.6742,0.00012792,2]
[355258915,1741045832159,-15247.05448622,0.00012793,2]
[355258917,1741045832171,-461.53951378,0.00012793,2]
[355258919,1741045832181,-1000.0,0.00012793,2]
[355258921,1741045832190,-6039.81199939,0.00012793,2]
[355258928,1741045832265,-360.64020061,0.00012793,2]
[355258930,1741045832275,-565.0,0.00012793,2]
[355258932,1741045832287,-426.38826033,0.000128,2]
[355258933,1741045832298,-150.0,0.000128,2]
[355258934,1741045832308,-87.65326406,0.00012807,2]
[355258935,1741045832320,-65.99441427,0.00012807,2]
[355258936,1741045832331,-150.0,0.00012811,2]
[355258937,1741045832341,-1000.0,0.00012812,2]
[355258938,1741045832351,-296.82,0.00012813,2]
[355258939,1741045832362,-150.0,0.00012815,2]
[355258940,1741045832373,-153.64767833,0.00012822,2]
[355258941,1741045832383,-153.64767833,0.00012838,2]
[355258942,1741045832393,-150.0,0.00012859,2]
[355258943,1741045832403,-150.0,0.00012868,2]
[355258944,1741045832412,-488.20236,0.0001287,2]
[355258945,1741045832421,-296.82,0.00012875,2]
[355258946,1741045832431,-410.01188595,0.0001289,2]
[355258994,1741045838085,-153.64767833,0.00012853,2]
[355258996,1741045838095,-145.60232167,0.00012869,2]
[355259147,1741045839550,-8.04535666,0.00012869,2]
[355259149,1741045839561,-293.78811405,0.0001289,2]
[355259151,1741045839572,-752.28,0.0001289,2]
[355259153,1741045839581,-327.58525141,0.0001289,2]
[355259155,1741045839593,-172.41474859,0.0001289,2]
[355259157,1741045839603,-806.95,0.0001289,2]
[355259159,1741045839612,-640.88,0.0001289,2]
[355259161,1741045839621,-500.0,0.0001289,2]
[355259163,1741045839630,-531.30790953,0.0001289,2]
[355259165,1741045839639,-747.42,0.0001289,2]
[355259167,1741045839650,-500.0,0.0001289,2]
[355259169,1741045839659,-698.3,0.0001289,2]
[355259171,1741045839669,-500.0,0.0001289,2]
[355259172,1741045839678,-1008.88,0.0001289,2]
[355259173,1741045839687,-500.0,0.0001289,2]
[355259174,1741045839696,-500.0,0.0001289,2]
[355259175,1741045839705,-500.0,0.0001289,2]
[355259176,1741045839714,-500.0,0.0001289,2]
[355259177,1741045839724,-500.0,0.0001289,2]
[355259178,1741045839732,-500.0,0.0001289,2]
[355259179,1741045839742,-500.0,0.0001289,2]
[355259180,1741045839750,-201.81671271,0.0001289,2]
[355259181,1741045839759,-500.0,0.0001289,2]
[355259182,1741045839768,-500.0,0.0001289,2]
[355259183,1741045839777,-500.0,0.0001289,2]
[355259184,1741045839787,-500.0,0.0001289,2]
[355259185,1741045839796,-500.0,0.0001289,2]
[355259186,1741045839805,-500.0,0.0001289,2]
[355259187,1741045839814,-722.49,0.0001289,2]
[355259188,1741045839823,-1034.27,0.0001289,2]
[355259189,1741045839832,-500.0,0.0001289,2]
[355259190,1741045839842,-500.0,0.0001289,2]
[355259191,1741045839851,-876.13,0.0001289,2]
[355259192,1741045839860,-500.0,0.0001289,2]
[355259193,1741045839869,-500.0,0.0001289,2]
[355259194,1741045839878,-500.0,0.0001289,2]
[355259195,1741045839889,-658.07,0.0001289,2]
[355259197,1741045839898,-500.0,0.0001289,2]
[355259199,1741045839907,-626.96,0.0001289,2]
[355259201,1741045839917,-891.74,0.0001289,2]
[355259203,1741045839927,-1737.36,0.0001289,2]
[355259204,1741045839936,-500.0,0.0001289,2]
[355259206,1741045839946,-500.0,0.0001289,2]
[355259208,1741045839956,-506.31,0.0001289,2]
[355259210,1741045839966,-1037.93,0.0001289,2]
[355259212,1741045839975,-792.66,0.0001289,2]
[355259214,1741045839985,-500.0,0.0001289,2]